[Event "MČR juniorů a juniorek v rapid šachu 2023"]
[Site "Czech Republic"]
[Date "2023.09.23"]
[Round "2.30"]
[White "Mikolas, Petr"]
[Black "Macova, Marketa"]
[Result "1-0"]
[TimeControl "20 min + 5 sec per move"]
[WhiteFideId "23713224"]
[BlackFideId "23715588"]
[WhiteElo "1514"]
[BlackElo "1228"]

1. e4 {[%clk 00:20:08]} {[%emt 00:00:02]} e5 {[%clk 00:20:09]} {[%emt
00:00:02]} 2. Nf3 {[%clk 00:20:12]} Nc6 {[%clk 00:20:13]} {[%emt 00:00:02]} 3.
Bc4 {[%clk 00:20:13]} {[%emt 00:00:04]} Bc5 {[%clk 00:20:16]} {[%emt 00:00:01]}
4. c3 {[%clk 00:20:16]} {[%emt 00:00:01]} d6 {[%clk 00:20:19]} {[%emt
00:00:02]} 5. d4 {[%clk 00:20:20]} {[%emt 00:00:02]} exd4 {[%clk 00:20:22]}
{[%emt 00:00:02]} 6. cxd4 {[%clk 00:20:24]} {[%emt 00:00:01]} Bb4+ {[%clk
00:20:26]} {[%emt 00:00:01]} 7. Nc3 {[%clk 00:20:01]} {[%emt 00:00:28]} Bg4
{[%clk 00:20:25]} {[%emt 00:00:06]} 8. O-O {[%clk 00:19:31]} {[%emt 00:00:35]}
Nf6 {[%clk 00:20:17]} {[%emt 00:00:13]} 9. Bg5 {[%clk 00:18:07]} {[%emt
00:01:29]} h6 {[%clk 00:20:18]} {[%emt 00:00:04]} 10. Bxf6 {[%clk 00:18:09]}
{[%emt 00:00:04]} Qxf6 {[%clk 00:20:20]} {[%emt 00:00:02]} 11. Nd5 {[%clk
00:18:12]} {[%emt 00:00:02]} Qd8 {[%clk 00:20:19]} {[%emt 00:00:06]} 12. Nxb4
{[%clk 00:18:00]} {[%emt 00:00:18]} Nxb4 {[%clk 00:20:21]} {[%emt 00:00:02]} 13.
Bxf7+ {[%clk 00:16:40]} {[%emt 00:01:25]} Kxf7 {[%clk 00:19:12]} {[%emt
00:01:14]} 14. Qb3+ {[%clk 00:16:43]} {[%emt 00:00:02]} Ke8 {[%clk 00:18:00]}
{[%emt 00:01:16]} 15. Qxb4 {[%clk 00:16:17]} {[%emt 00:00:31]} Bxf3 {[%clk
00:17:23]} {[%emt 00:00:42]} 16. gxf3 {[%clk 00:16:21]} {[%emt 00:00:02]} Qg5+
{[%clk 00:14:41]} {[%emt 00:02:46]} 17. Kh1 {[%clk 00:16:24]} {[%emt 00:00:02]}
b6 {[%clk 00:13:25]} {[%emt 00:01:21]} 18. Rg1 {[%clk 00:13:48]} {[%emt
00:02:42]} Qf6 {[%clk 00:13:20]} {[%emt 00:00:10]} 19. Qc3 {[%clk 00:11:34]}
{[%emt 00:02:20]} Qf7 {[%clk 00:06:53]} {[%emt 00:06:32]} 20. Qc6+ {[%clk
00:11:17]} {[%emt 00:00:22]} Ke7 {[%clk 00:06:33]} {[%emt 00:00:24]} 21. Qxc7+
{[%clk 00:10:57]} {[%emt 00:00:25]} Ke8 {[%clk 00:05:51]} {[%emt 00:00:46]} 22.
Qc6+ {[%clk 00:10:39]} {[%emt 00:00:24]} Ke7 {[%clk 00:05:53]} {[%emt
00:00:03]} 23. e5 {[%clk 00:07:53]} {[%emt 00:02:51]} Rac8 {[%clk 00:04:52]}
{[%emt 00:01:05]} 24. Qxd6+ {[%clk 00:06:25]} {[%emt 00:01:34]} Ke8 {[%clk
00:04:45]} {[%emt 00:00:11]} 25. Rg3 {[%clk 00:06:24]} {[%emt 00:00:07]} Rf8
{[%clk 00:04:04]} {[%emt 00:00:46]} 26. e6 {[%clk 00:05:17]} {[%emt 00:01:12]}
Qf6 {[%clk 00:03:30]} {[%emt 00:00:38]} 27. Qd7# {[%emt 00:00:03]} 1-0

[Event "MČR juniorů a juniorek v rapid šachu 2023"]
[Site "Czech Republic"]
[Date "2023.09.23"]
[Round "2.31"]
[White "Hosova, Stella"]
[Black "Havelkova, Beata"]
[Result "0-1"]
[TimeControl "20 min + 5 sec per move"]
[WhiteFideId "23710489"]
[BlackFideId "23709405"]
[WhiteElo "1164"]
[BlackElo "1494"]

1. d4 {[%clk 00:20:08]} {[%emt 00:00:01]} Nf6 {[%clk 00:20:09]} {[%emt
00:00:01]} 2. Bf4 {[%clk 00:20:12]} {[%emt 00:00:01]} g6 {[%clk 00:20:03]}
{[%emt 00:00:11]} 3. e3 {[%clk 00:20:15]} {[%emt 00:00:03]} Bg7 {[%clk
00:20:07]} 4. Bd3 {[%clk 00:20:16]} {[%emt 00:00:04]} d6 {[%clk 00:19:51]}
{[%emt 00:00:22]} 5. Nd2 {[%clk 00:20:16]} {[%emt 00:00:05]} Nfd7 {[%clk
00:19:17]} {[%emt 00:00:38]} 6. c3 {[%clk 00:20:14]} {[%emt 00:00:07]} e5
{[%clk 00:19:08]} {[%emt 00:00:14]} 7. Bg3 {[%clk 00:20:04]} {[%emt 00:00:14]}
d5 {[%clk 00:18:42]} {[%emt 00:00:32]} 8. Bb5 {[%clk 00:19:55]} {[%emt
00:00:15]} exd4 {[%clk 00:18:08]} {[%emt 00:00:39]} 9. exd4 {[%clk 00:19:52]}
{[%emt 00:00:07]} O-O {[%clk 00:18:06]} {[%emt 00:00:08]} 10. Ngf3 {[%clk
00:19:55]} {[%emt 00:00:02]} Re8+ {[%clk 00:17:49]} {[%emt 00:00:22]} 11. Be2
{[%clk 00:19:54]} {[%emt 00:00:06]} Qe7 {[%clk 00:17:48]} {[%emt 00:00:06]} 12.
Bxc7 {[%clk 00:19:27]} {[%emt 00:00:32]} Nc6 {[%clk 00:17:27]} {[%emt
00:00:26]} 13. Ng1 {[%clk 00:18:29]} {[%emt 00:01:03]} Nf6 {[%clk 00:17:13]}
{[%emt 00:00:19]} 14. Bg3 {[%clk 00:17:49]} {[%emt 00:00:44]} Bf5 {[%clk
00:16:59]} {[%emt 00:00:20]} 15. Ndf3 {[%clk 00:17:36]} {[%emt 00:00:19]} Ne4
{[%clk 00:16:20]} {[%emt 00:00:44]} 16. Nh4 {[%clk 00:16:18]} {[%emt 00:01:22]}
Bg4 {[%clk 00:14:03]} {[%emt 00:02:22]} 17. f3 {[%clk 00:15:19]} {[%emt
00:01:04]} Nxg3 {[%clk 00:14:01]} {[%emt 00:00:07]} 18. hxg3 {[%clk 00:15:18]}
{[%emt 00:00:06]} Bd7 {[%clk 00:14:04]} {[%emt 00:00:02]} 19. Qd2 {[%clk
00:14:59]} {[%emt 00:00:24]} g5 {[%clk 00:13:33]} {[%emt 00:00:36]} 20. Qd3
{[%clk 00:13:40]} {[%emt 00:01:23]} Qf6 {[%clk 00:12:05]} {[%emt 00:01:34]} 21.
f4 {[%emt 00:01:35]} gxh4 {[%clk 00:12:00]} {[%emt 00:00:05]} 22. Rxh4 {[%clk
00:12:15]} {[%emt 00:00:04]} Bf5 {[%clk 00:11:45]} {[%emt 00:00:21]} 23. Qf3
{[%clk 00:12:10]} {[%emt 00:00:09]} Re4 {[%clk 00:09:50]} {[%emt 00:02:01]} 24.
O-O-O {[%clk 00:11:44]} {[%emt 00:00:31]} Nxd4 {[%clk 00:08:43]} {[%emt
00:01:12]} 25. Qf2 {[%clk 00:11:00]} {[%emt 00:00:47]} Nxe2+ {[%clk 00:08:16]}
{[%emt 00:00:33]} 26. Nxe2 {[%clk 00:11:03]} {[%emt 00:00:03]} Rae8 {[%clk
00:07:31]} {[%emt 00:00:50]} 27. Rd2 {[%clk 00:10:09]} {[%emt 00:00:59]} b5
{[%clk 00:06:13]} {[%emt 00:01:23]} 28. g4 {[%clk 00:09:43]} {[%emt 00:00:30]}
Bg6 {[%clk 00:05:51]} {[%emt 00:00:28]} 29. g5 {[%clk 00:07:32]} {[%emt
00:02:16]} Qf5 {[%clk 00:05:36]} {[%emt 00:00:20]} 30. Ng3 {[%clk 00:07:13]}
{[%emt 00:00:22]} Re1+ {[%clk 00:05:27]} {[%emt 00:00:16]} 0-1

[Event "MČR juniorů a juniorek v rapid šachu 2023"]
[Site "Czech Republic"]
[Date "2023.09.23"]
[Round "2.32"]
[White "Hruby, Filip"]
[Black "Zadrapova, Gabriela"]
[Result "1-0"]
[TimeControl "20 min + 5 sec per move"]
[WhiteFideId "23721480"]
[BlackFideId "23753056"]
[WhiteElo "1460"]
[BlackElo "1206"]

1. e4 {[%clk 00:20:07]} {[%emt 00:00:02]} e5 {[%clk 00:20:08]} {[%emt
00:00:03]} 2. Nc3 {[%clk 00:20:10]} {[%emt 00:00:01]} Nf6 {[%clk 00:20:11]}
{[%emt 00:00:02]} 3. f4 {[%clk 00:20:13]} {[%emt 00:00:03]} exf4 {[%clk
00:20:07]} {[%emt 00:00:08]} 4. e5 {[%clk 00:20:16]} {[%emt 00:00:02]} Ng8
{[%clk 00:19:55]} {[%emt 00:00:18]} 5. Nf3 {[%clk 00:20:14]} {[%emt 00:00:06]}
Nc6 {[%clk 00:19:42]} {[%emt 00:00:18]} 6. d4 {[%clk 00:20:15]} {[%emt
00:00:04]} d6 {[%clk 00:18:48]} {[%emt 00:01:00]} 7. Bb5 {[%clk 00:19:12]}
{[%emt 00:01:07]} Bd7 {[%clk 00:18:42]} {[%emt 00:00:12]} 8. O-O {[%clk
00:16:41]} {[%emt 00:02:35]} dxe5 {[%clk 00:18:35]} {[%emt 00:00:13]} 9. Bxc6
{[%clk 00:15:41]} {[%emt 00:01:05]} Bxc6 {[%clk 00:18:38]} {[%emt 00:00:03]} 10.
Nxe5 {[%clk 00:15:40]} {[%emt 00:00:05]} Qd6 {[%clk 00:18:06]} {[%emt
00:00:36]} 11. Bxf4 {[%clk 00:15:10]} {[%emt 00:00:35]} Qe6 {[%clk 00:16:47]}
{[%emt 00:01:24]} 12. d5 {[%clk 00:13:16]} {[%emt 00:02:00]} Bxd5 {[%clk
00:16:26]} {[%emt 00:00:27]} 13. Qxd5 {[%clk 00:13:12]} {[%emt 00:00:08]} Qb6+
{[%clk 00:16:00]} {[%emt 00:00:29]} 14. Kh1 {[%clk 00:12:53]} {[%emt 00:00:25]}
Qe6 {[%clk 00:14:42]} {[%emt 00:01:23]} 15. Nb5 {[%clk 00:11:27]} {[%emt
00:01:30]} Rc8 {[%clk 00:14:10]} {[%emt 00:00:38]} 16. Qxe6+ {[%clk 00:11:20]}
{[%emt 00:00:12]} fxe6 {[%clk 00:14:09]} {[%emt 00:00:05]} 17. Nxa7 {[%clk
00:11:18]} {[%emt 00:00:07]} Rd8 {[%clk 00:14:05]} {[%emt 00:00:09]} 18. Nb5
{[%clk 00:11:18]} {[%emt 00:00:05]} Rc8 {[%clk 00:13:50]} {[%emt 00:00:20]} 19.
Rad1 {[%clk 00:11:08]} {[%emt 00:00:15]} Bc5 {[%clk 00:13:34]} {[%emt
00:00:21]} 20. Nd7 {[%clk 00:10:46]} {[%emt 00:00:27]} Bb6 {[%clk 00:13:19]}
{[%emt 00:00:21]} 21. Nxb6 {[%clk 00:10:44]} {[%emt 00:00:07]} cxb6 {[%clk
00:13:22]} {[%emt 00:00:03]} 22. Nd6+ {[%clk 00:10:47]} {[%emt 00:00:02]} Kd8
{[%clk 00:13:03]} {[%emt 00:00:24]} 23. Nf7+ {[%clk 00:10:50]} {[%emt
00:00:02]} Ke8 {[%clk 00:13:04]} {[%emt 00:00:04]} 24. Nxh8 {[%clk 00:10:52]}
{[%emt 00:00:02]} Nf6 {[%clk 00:13:03]} {[%emt 00:00:06]} 25. Be5 {[%clk
00:10:49]} {[%emt 00:00:07]} Ke7 {[%clk 00:13:06]} {[%emt 00:00:02]} 26. Bxf6+
{[%clk 00:10:50]} {[%emt 00:00:05]} gxf6 {[%clk 00:13:07]} {[%emt 00:00:04]} 27.
Rf2 {[%clk 00:10:39]} {[%emt 00:00:16]} Rxh8 {[%clk 00:13:09]} {[%emt
00:00:03]} 28. Rfd2 {[%clk 00:10:43]} {[%emt 00:00:01]} Rb8 {[%clk 00:13:05]}
{[%emt 00:00:08]} 29. Rd7+ {[%clk 00:10:45]} {[%emt 00:00:03]} Ke8 {[%clk
00:13:08]} {[%emt 00:00:02]} 30. Rxh7 {[%clk 00:10:49]} {[%emt 00:00:02]} Kf8
{[%clk 00:13:05]} {[%emt 00:00:07]} 31. Rh8+ {[%clk 00:10:52]} {[%emt
00:00:02]} Ke7 {[%clk 00:13:06]} {[%emt 00:00:04]} 32. Rxb8 {[%clk 00:10:55]}
{[%emt 00:00:03]} Kf7 {[%clk 00:13:09]} {[%emt 00:00:01]} 33. Rxb7+ {[%clk
00:10:58]} {[%emt 00:00:03]} Kg6 {[%clk 00:13:13]} 34. Rxb6 {[%clk 00:11:00]}
{[%emt 00:00:04]} Kf7 {[%clk 00:13:17]} 35. Rd7+ {[%clk 00:11:02]} {[%emt
00:00:04]} Kg6 {[%clk 00:13:20]} {[%emt 00:00:02]} 36. Rxe6 {[%clk 00:11:03]}
{[%emt 00:00:03]} Kf5 {[%clk 00:13:20]} {[%emt 00:00:05]} 37. Rdd6 {[%clk
00:11:05]} {[%emt 00:00:03]} Kg5 {[%clk 00:13:22]} {[%emt 00:00:02]} 38. Rxf6
{[%clk 00:11:06]} {[%emt 00:00:04]} Kh5 {[%clk 00:13:24]} {[%emt 00:00:03]} 39.
Rd5+ {[%clk 00:11:00]} {[%emt 00:00:11]} Kg4 {[%clk 00:13:27]} {[%emt
00:00:02]} 40. h3+ {[%clk 00:10:43]} {[%emt 00:00:22]} Kg3 {[%clk 00:13:29]}
{[%emt 00:00:03]} 41. Rg5+ {[%clk 00:10:31]} {[%emt 00:00:17]} Kh4 {[%clk
00:13:30]} {[%emt 00:00:04]} 42. Rg4+ {[%clk 00:10:32]} {[%emt 00:00:04]} Kh5
{[%clk 00:13:34]} {[%emt 00:00:02]} 43. Rf8 {[%clk 00:10:34]} {[%emt 00:00:03]}
Kh6 {[%clk 00:13:35]} {[%emt 00:00:04]} 44. Rh8# {[%clk 00:10:37]} {[%emt
00:00:01]} 1-0

[Event "MČR juniorů a juniorek v rapid šachu 2023"]
[Site "Czech Republic"]
[Date "2023.09.23"]
[Round "2.33"]
[White "Martinkovicova, Nela"]
[Black "Janouskova, Adela"]
[Result "0-1"]
[TimeControl "20 min + 5 sec per move"]
[WhiteFideId "23715596"]
[BlackFideId "23709804"]
[WhiteElo "1049"]
[BlackElo "1442"]

1. Nf3 {[%clk 00:20:03]} {[%emt 00:00:06]} f5 {[%clk 00:19:35]} {[%emt
00:00:35]} 2. d4 {[%clk 00:19:57]} {[%emt 00:00:10]} Nf6 {[%clk 00:19:36]}
{[%emt 00:00:05]} 3. Bf4 {[%clk 00:19:47]} {[%emt 00:00:15]} g6 {[%clk
00:19:18]} {[%emt 00:00:23]} 4. e3 {[%clk 00:19:20]} {[%emt 00:00:33]} Bg7
{[%clk 00:19:14]} {[%emt 00:00:08]} 5. Bc4 {[%clk 00:18:54]} {[%emt 00:00:31]}
e6 {[%clk 00:18:30]} {[%emt 00:00:49]} 6. Nc3 {[%clk 00:18:22]} {[%emt
00:00:37]} O-O {[%clk 00:18:22]} {[%emt 00:00:12]} 7. Qe2 {[%clk 00:17:34]}
{[%emt 00:00:53]} d5 {[%clk 00:18:07]} {[%emt 00:00:21]} 8. Bd3 {[%clk
00:17:15]} {[%emt 00:00:23]} Nbd7 {[%clk 00:16:49]} {[%emt 00:01:23]} 9. O-O-O
{[%clk 00:16:52]} {[%emt 00:00:29]} a6 {[%clk 00:15:20]} {[%emt 00:01:35]} 10.
Rdg1 {[%clk 00:16:06]} {[%emt 00:00:50]} c5 {[%clk 00:14:58]} {[%emt 00:00:27]}
11. h4 {[%clk 00:15:39]} {[%emt 00:00:32]} c4 {[%clk 00:14:27]} {[%emt
00:00:37]} 12. Bxc4 {[%clk 00:14:26]} {[%emt 00:01:18]} dxc4 {[%clk 00:14:30]}
{[%emt 00:00:02]} 13. Qxc4 {[%emt 00:00:13]} Nb6 {[%clk 00:14:18]} {[%emt
00:00:15]} 14. Qd3 {[%clk 00:13:35]} {[%emt 00:00:49]} Nbd5 {[%clk 00:13:49]}
{[%emt 00:00:35]} 15. Be5 {[%clk 00:11:28]} {[%emt 00:02:11]} Nxc3 {[%clk
00:13:04]} {[%emt 00:00:50]} 16. bxc3 {[%clk 00:10:55]} {[%emt 00:00:39]} Ne4
{[%clk 00:12:06]} {[%emt 00:01:03]} 17. Rf1 {[%clk 00:09:51]} {[%emt 00:01:08]}
Qa5 {[%clk 00:11:50]} {[%emt 00:00:22]} 18. Bxg7 {[%clk 00:08:44]} {[%emt
00:01:12]} Kxg7 {[%clk 00:11:53]} {[%emt 00:00:01]} 19. Ng5 {[%clk 00:07:19]}
{[%emt 00:01:30]} Qa3+ {[%clk 00:11:07]} {[%emt 00:00:51]} 20. Kd1 {[%clk
00:06:51]} {[%emt 00:00:31]} Nxc3+ {[%clk 00:10:54]} {[%emt 00:00:21]} 21. Kd2
{[%clk 00:05:34]} {[%emt 00:01:18]} Nb5 {[%clk 00:10:13]} {[%emt 00:00:49]} 22.
Qxa3 {[%clk 00:05:13]} {[%emt 00:00:26]} Nxa3 {[%clk 00:10:17]} {[%emt
00:00:01]} 23. f4 {[%clk 00:05:08]} {[%emt 00:00:10]} Bd7 {[%clk 00:10:07]}
{[%emt 00:00:14]} 24. Rfg1 {[%clk 00:04:55]} {[%emt 00:00:19]} h5 {[%clk
00:09:57]} {[%emt 00:00:15]} 25. g3 {[%clk 00:04:28]} {[%emt 00:00:32]} Rac8
{[%clk 00:09:58]} {[%emt 00:00:04]} 26. Rc1 {[%clk 00:04:24]} {[%emt 00:00:08]}
Rc7 {[%clk 00:09:42]} {[%emt 00:00:22]} 27. Kd1 {[%clk 00:04:08]} {[%emt
00:00:19]} Rfc8 {[%clk 00:09:43]} {[%emt 00:00:06]} 28. Rh2 {[%clk 00:04:04]}
{[%emt 00:00:09]} Rc3 {[%clk 00:09:43]} {[%emt 00:00:05]} 29. Re2 {[%clk
00:03:48]} {[%emt 00:00:21]} Kf6 {[%clk 00:09:40]} {[%emt 00:00:08]} 30. Nh7+
{[%clk 00:03:39]} {[%emt 00:00:14]} Ke7 {[%clk 00:09:37]} {[%emt 00:00:07]} 31.
Ng5 {[%clk 00:03:26]} {[%emt 00:00:18]} Ba4 {[%clk 00:09:31]} {[%emt 00:00:12]}
32. Nf3 {[%clk 00:02:48]} {[%emt 00:00:43]} Nxc2 {[%clk 00:06:50]} {[%emt
00:02:46]} 33. Rcxc2 {[%clk 00:01:10]} {[%emt 00:01:44]} Bxc2+ {[%clk
00:06:41]} {[%emt 00:00:13]} 34. Ke1 {[%clk 00:00:44]} {[%emt 00:00:30]} Bd3
{[%clk 00:06:24]} {[%emt 00:00:22]} 35. Rd2 {[%clk 00:00:29]} {[%emt 00:00:20]}
Rc1+ {[%clk 00:06:23]} {[%emt 00:00:07]} 36. Kf2 {[%clk 00:00:09]} {[%emt
00:00:23]} Bb5 {[%clk 00:06:10]} {[%emt 00:00:20]} 37. Ne1 {[%clk 00:00:09]}
{[%emt 00:00:05]} Rb1 {[%clk 00:05:43]} {[%emt 00:00:33]} 38. Nf3 {[%clk
00:00:00]} {[%emt 00:00:09]} 0-1

[Event "MČR juniorů a juniorek v rapid šachu 2023"]
[Site "Czech Republic"]
[Date "2023.09.23"]
[Round "3.1"]
[White "Pressler, Tobias"]
[Black "Prazak, Daniel"]
[Result "0-1"]
[TimeControl "20 min + 5 sec per move"]
[WhiteFideId "23715359"]
[BlackFideId "23709456"]
[WhiteElo "1859"]
[BlackElo "2029"]

1. e4 {[%clk 00:20:08]} {[%emt 00:00:02]} c6 {[%clk 00:20:08]} {[%emt
00:00:02]} 2. d4 {[%clk 00:20:11]} {[%emt 00:00:03]} d5 {[%clk 00:20:13]} 3.
exd5 {[%clk 00:20:14]} {[%emt 00:00:02]} cxd5 {[%clk 00:20:17]} 4. Bd3 {[%clk
00:20:18]} Nc6 {[%clk 00:20:21]} 5. c3 {[%clk 00:20:21]} {[%emt 00:00:01]} Qc7
{[%clk 00:20:25]} {[%emt 00:00:01]} 6. h3 {[%clk 00:20:22]} {[%emt 00:00:05]}
Nf6 {[%clk 00:20:20]} {[%emt 00:00:10]} 7. Nf3 {[%clk 00:20:25]} {[%emt
00:00:02]} g6 {[%clk 00:19:40]} {[%emt 00:00:44]} 8. O-O {[%clk 00:20:05]}
{[%emt 00:00:25]} Bf5 {[%clk 00:19:40]} {[%emt 00:00:05]} 9. Re1 {[%clk
00:19:44]} {[%emt 00:00:26]} Bg7 {[%clk 00:18:22]} {[%emt 00:01:24]} 10. Ne5
{[%clk 00:19:06]} {[%emt 00:00:43]} Bxd3 {[%clk 00:16:47]} {[%emt 00:01:39]} 11.
Nxd3 {[%clk 00:18:57]} {[%emt 00:00:13]} O-O {[%clk 00:16:23]} {[%emt
00:00:30]} 12. Bf4 {[%clk 00:18:59]} {[%emt 00:00:04]} Qc8 {[%clk 00:16:12]}
{[%emt 00:00:15]} 13. Nd2 {[%clk 00:18:35]} {[%emt 00:00:30]} Re8 {[%clk
00:15:36]} {[%emt 00:00:40]} 14. Qf3 {[%clk 00:17:20]} {[%emt 00:01:20]} b6
{[%clk 00:15:05]} {[%emt 00:00:36]} 15. Nf1 {[%clk 00:17:00]} {[%emt 00:00:25]}
Ne4 {[%clk 00:15:01]} {[%emt 00:00:09]} 16. Ng3 {[%clk 00:16:36]} {[%emt
00:00:29]} Nxg3 {[%clk 00:14:50]} {[%emt 00:00:16]} 17. Bxg3 {[%clk 00:16:07]}
{[%emt 00:00:35]} Qd7 {[%clk 00:14:39]} {[%emt 00:00:16]} 18. Re2 {[%clk
00:15:55]} {[%emt 00:00:16]} e6 {[%clk 00:14:29]} {[%emt 00:00:16]} 19. Bh2
{[%clk 00:14:48]} {[%emt 00:01:12]} b5 {[%clk 00:13:35]} {[%emt 00:00:59]} 20.
Nc5 {[%clk 00:14:49]} {[%emt 00:00:03]} Qe7 {[%clk 00:13:26]} {[%emt 00:00:14]}
21. Na6 {[%clk 00:14:21]} {[%emt 00:00:34]} Rac8 {[%clk 00:13:04]} {[%emt
00:00:26]} 22. Nc7 {[%clk 00:14:13]} {[%emt 00:00:13]} Rxc7 {[%clk 00:12:56]}
{[%emt 00:00:14]} 23. Bxc7 {[%clk 00:14:17]} Qxc7 {[%clk 00:13:00]} 24. a3
{[%clk 00:14:19]} {[%emt 00:00:04]} a5 {[%clk 00:13:00]} {[%emt 00:00:04]} 25.
Qd3 {[%clk 00:14:13]} {[%emt 00:00:10]} b4 {[%clk 00:13:01]} {[%emt 00:00:05]}
26. axb4 {[%clk 00:14:17]} {[%emt 00:00:02]} axb4 {[%clk 00:13:05]} 27. Ra6
{[%clk 00:14:00]} {[%emt 00:00:20]} Qb7 {[%clk 00:12:54]} {[%emt 00:00:17]} 28.
Re1 {[%clk 00:12:57]} {[%emt 00:01:09]} bxc3 {[%clk 00:12:28]} {[%emt
00:00:31]} 29. bxc3 {[%clk 00:13:01]} Ra8 {[%clk 00:12:31]} {[%emt 00:00:02]}
30. Rxa8+ {[%clk 00:12:52]} {[%emt 00:00:14]} Qxa8 {[%clk 00:12:34]} {[%emt
00:00:02]} 31. Qb5 {[%clk 00:12:47]} {[%emt 00:00:10]} h5 {[%clk 00:12:12]}
{[%emt 00:00:27]} 32. g3 {[%clk 00:11:58]} {[%emt 00:00:54]} Bf6 {[%clk
00:12:00]} {[%emt 00:00:17]} 33. Kg2 {[%clk 00:11:46]} {[%emt 00:00:17]} Ne7
{[%clk 00:11:38]} {[%emt 00:00:26]} 34. Rb1 {[%clk 00:11:40]} {[%emt 00:00:12]}
Kg7 {[%clk 00:11:20]} {[%emt 00:00:22]} 35. h4 {[%clk 00:11:18]} {[%emt
00:00:27]} Nf5 {[%clk 00:11:18]} {[%emt 00:00:07]} 36. Qd7 {[%clk 00:10:57]}
{[%emt 00:00:26]} Qd8 {[%clk 00:11:08]} {[%emt 00:00:15]} 37. Qa7 {[%clk
00:10:42]} {[%emt 00:00:21]} Nd6 {[%clk 00:10:50]} {[%emt 00:00:23]} 38. Rb8
{[%clk 00:10:42]} {[%emt 00:00:06]} Qe7 {[%clk 00:10:46]} {[%emt 00:00:09]} 39.
Qa8 {[%clk 00:10:33]} {[%emt 00:00:14]} Kh7 {[%clk 00:10:27]} {[%emt 00:00:23]}
40. Qc6 {[%clk 00:10:32]} {[%emt 00:00:06]} Bg7 {[%clk 00:10:09]} {[%emt
00:00:23]} 41. Rb6 {[%clk 00:09:29]} {[%emt 00:01:08]} Bf8 {[%clk 00:09:22]}
{[%emt 00:00:52]} 42. Rb8 {[%clk 00:08:39]} {[%emt 00:00:56]} Kg7 {[%clk
00:07:50]} {[%emt 00:01:37]} 43. Rb6 {[%clk 00:07:46]} {[%emt 00:00:58]} Ne4
{[%clk 00:07:30]} {[%emt 00:00:24]} 44. Rb7 {[%clk 00:07:17]} {[%emt 00:00:34]}
Qf6 {[%clk 00:07:27]} {[%emt 00:00:07]} 45. f4 {[%clk 00:07:17]} {[%emt
00:00:06]} Qf5 {[%clk 00:07:18]} {[%emt 00:00:14]} 46. Qd7 {[%clk 00:06:50]}
{[%emt 00:00:31]} Nd6 {[%clk 00:06:39]} {[%emt 00:00:44]} 47. Rc7 {[%clk
00:05:44]} {[%emt 00:01:12]} Qc2+ {[%clk 00:06:24]} {[%emt 00:00:19]} 48. Kh3
{[%clk 00:05:29]} {[%emt 00:00:20]} Qe4 {[%clk 00:06:16]} {[%emt 00:00:13]} 49.
Kh2 {[%clk 00:05:28]} {[%emt 00:00:07]} Qe2+ {[%clk 00:06:19]} {[%emt
00:00:01]} 50. Kh3 {[%clk 00:05:26]} {[%emt 00:00:06]} Qf1+ {[%clk 00:06:21]}
{[%emt 00:00:05]} 51. Kh2 {[%clk 00:05:30]} Qf2+ {[%clk 00:06:25]} 52. Kh1
{[%clk 00:05:20]} {[%emt 00:00:14]} Qxg3 {[%clk 00:06:21]} {[%emt 00:00:10]} 53.
Qxe6 {[%clk 00:05:20]} {[%emt 00:00:06]} Qxh4+ {[%clk 00:05:54]} {[%emt
00:00:32]} 54. Kg2 {[%clk 00:05:13]} {[%emt 00:00:12]} Qxf4 {[%clk 00:05:57]}
{[%emt 00:00:02]} 55. Qxd5 {[%clk 00:05:14]} {[%emt 00:00:03]} Ne4 {[%clk
00:05:13]} {[%emt 00:00:48]} 56. Qe5+ {[%clk 00:05:18]} {[%emt 00:00:02]} Qxe5
{[%clk 00:05:17]} 57. dxe5 {[%clk 00:05:23]} Nc5 {[%clk 00:05:19]} {[%emt
00:00:02]} 58. Kf3 {[%clk 00:05:07]} {[%emt 00:00:20]} g5 {[%clk 00:05:13]}
{[%emt 00:00:12]} 59. Rc6 {[%clk 00:04:56]} {[%emt 00:00:15]} Ne6 {[%clk
00:05:16]} {[%emt 00:00:03]} 60. Ke4 {[%clk 00:04:49]} {[%emt 00:00:13]} Kg6
{[%clk 00:05:19]} {[%emt 00:00:02]} 61. c4 {[%clk 00:04:52]} {[%emt 00:00:02]}
h4 {[%clk 00:05:17]} {[%emt 00:00:06]} 62. Rc8 {[%clk 00:04:46]} {[%emt
00:00:07]} g4 {[%clk 00:05:14]} {[%emt 00:00:11]} 63. Ra8 {[%clk 00:04:49]}
{[%emt 00:00:03]} h3 {[%clk 00:05:10]} {[%emt 00:00:09]} 64. Ra1 {[%clk
00:04:49]} {[%emt 00:00:06]} g3 {[%clk 00:05:01]} {[%emt 00:00:14]} 65. Kf3
{[%clk 00:04:45]} {[%emt 00:00:09]} g2 {[%clk 00:05:03]} {[%emt 00:00:02]} 66.
Kg3 {[%clk 00:04:45]} {[%emt 00:00:05]} Bc5 {[%clk 00:05:06]} {[%emt 00:00:02]}
0-1